fUSD/lending_fUSD_20251119
["ID","MTS","AMOUNT","RATE_DAILY","PERIOD"]
[394383835,1763514794286,500.0,0.00041802,30]
[394383839,1763514804462,500.0,0.00041802,30]
[394383840,1763514805100,500.0,0.00041802,30]
[394383841,1763514805755,500.0,0.00041802,30]
[394383842,1763514806381,500.0,0.00041802,30]
[394383843,1763514807016,500.0,0.00041802,30]
[394383844,1763514807619,500.0,0.00041802,30]
[394383867,1763515067183,342.41753753,0.00041802,30]
[394383883,1763515565537,935.64,0.00018,2]
[394383884,1763515615119,23883.67871773,0.000162,5]
[394383885,1763515615145,40070.86498636,0.000162,5]
[394383887,1763515624078,3921.14,0.00017,3]
[394383897,1763515730383,500.0,0.00041812,120]
[394383898,1763515730619,266.7338612,0.00041812,120]
[394384091,1763515808195,191.51733067,0.00041812,30]
[394384096,1763515808715,232.63479688,0.00041812,120]
[394384106,1763515809795,829.89281723,0.00041812,120]
[394384119,1763515813150,1486.91794199,0.00041812,120]
[394384120,1763515813536,223.58373203,0.00041812,120]
[394384124,1763515816945,172.30710632,0.00041812,120]
[394384128,1763515818749,222.55340623,0.00041812,120]
[394384137,1763515821150,200.50290455,0.00041812,120]
[394384138,1763515821767,194.49560348,0.00041812,120]
[394384140,1763515822815,359.03343423,0.00041812,120]
[394384145,1763515823593,390.17324233,0.00041812,120]
[394384150,1763515824637,186.33320109,0.00041812,120]
[394384174,1763515827218,254.19341261,0.00041812,120]
[394384193,1763515831657,-195.0,0.00019,2]
[394384194,1763515831666,-243.37531771,0.000192,2]
[394384195,1763515831684,-6.62468229,0.000192,2]
[394384196,1763515831693,-193.0,0.000194,2]
[394384197,1763515831702,-195.0,0.000198,2]
[394384198,1763515831711,-300.0,0.000198,2]
[394384199,1763515831720,-999.05659672,0.0002,2]
[394384200,1763515831730,-696.19192311,0.0002,2]
[394384201,1763515831744,-3840.2032788,0.0002,2]
[394384202,1763515831763,-1465.65369897,0.0002,2]
[394384203,1763515831771,-193.0,0.0002034,2]
[394384204,1763515831780,-185.5498511,0.0002034,2]
[394384205,1763515831791,-300.0,0.00020899,2]
[394384206,1763515831800,-300.0,0.00020899,2]
[394384207,1763515831809,-300.0,0.000209,2]
[394384208,1763515831819,-193.0,0.000209,2]
[394384209,1763515831827,-250.0,0.000209,2]
[394384210,1763515831837,-300.0,0.00022,2]
[394384211,1763515831846,-420.0,0.00022736,2]
[394384212,1763515831854,-312.0,0.00022736,2]
[394384213,1763515831863,-195.0,0.00023105,2]
[394384214,1763515831872,-587.0,0.00024734,2]
[394384215,1763515831881,-169.24700424,0.00025,2]
[394384216,1763515831892,-594.30428923,0.0002599,2]
[394384217,1763515831901,-1454.0,0.00025999,2]
[394384218,1763515831910,-4138.65,0.00026,2]
[394384219,1763515831919,-21172.74527072,0.00026,2]
[394384220,1763515831928,-214.22029665,0.00026,2]
[394384221,1763515831937,-161.24710889,0.00026,2]
[394384222,1763515831946,-606.0,0.00026908,2]
[394384223,1763515831955,-155.46289181,0.00029948,13]
[394384225,1763515831964,-278.41536593,0.00030667,5]
[394384226,1763515831973,-500.0,0.00030667,5]
[394384227,1763515831982,-500.0,0.00031215,5]
[394384228,1763515831991,-176.39483232,0.00031538,16]
[394384229,1763515832000,-160.16,0.00031797,2]
[394384230,1763515832010,-500.0,0.00032,2]
[394384231,1763515832019,-500.0,0.00032082,2]
[394384232,1763515832028,-150.99,0.00032999,2]
[394384233,1763515832037,-9071.99,0.00032999,2]
[394384234,1763515832046,-999.99,0.00032999,2]
[394384235,1763515832054,-9999.99,0.00032999,2]
[394384237,1763515832064,-9999.99,0.00033,2]
[394384239,1763515832073,-198.88072599,0.00033128,19]
[394384241,1763515832082,-222.81977112,0.00034717,23]
[394384243,1763515832091,-3218.72,0.0003475,2]
[394384246,1763515832100,-150.0,0.00035482,2]
[394384248,1763515832110,-248.12857776,0.00036307,26]
[394384250,1763515832119,-500.0,0.00036533,5]
[394384257,1763515832266,-4850.28,0.00036785,120]
[394384258,1763515832276,-164.95,0.00036799,2]
[394384259,1763515832286,-500.0,0.00036806,30]
[394384260,1763515832295,-13951.73496837,0.0003691,2]
[394384261,1763515832304,-8683.28194271,0.00037,5]
[394384262,1763515832313,-300.0,0.00037075,2]
[394384263,1763515832321,-500.0,0.00037081,5]
[394384264,1763515832330,-1259.006,0.0003713,47]
[394384265,1763515832339,-250.0,0.00037158,2]
[394384266,1763515832348,-500.0,0.0003718,30]
[394384267,1763515832357,-6909.91,0.00037197,2]
[394384268,1763515832366,-999.0,0.00037246,3]
[394384269,1763515832374,-540.6888664,0.00037286,30]
[394384270,1763515832384,-300.0,0.00037371,2]
[394384271,1763515832394,-300.0,0.00037434,2]
[394384272,1763515832404,-500.0,0.00037487,30]
[394384273,1763515832414,-300.0,0.0003752,2]
[394384274,1763515832423,-150.0,0.00037627,7]
[394384275,1763515832432,-356.279136,0.0003778,2]
[394384276,1763515832441,-300.0,0.00037801,2]
[394384277,1763515832450,-300.0,0.00037806,2]
[394384278,1763515832459,-300.0,0.00037824,2]
[394384280,1763515832468,-274.73666264,0.00037897,30]
[394384281,1763515832477,-1248.76,0.0003796,120]
[394384282,1763515832485,-203.34167533,0.0003803,2]
[394384283,1763515832495,-300.0,0.00038069,2]
[394384284,1763515832504,-500.0,0.00038106,30]
[394384285,1763515832513,-500.0,0.00038119,30]
[394384286,1763515832522,-300.0,0.00038164,2]
[394384287,1763515832531,-300.0,0.00038192,2]
[394384288,1763515832540,-300.0,0.0003827,2]
[394384289,1763515832549,-300.0,0.00038433,2]
[394384290,1763515832557,-300.0,0.00038447,2]
[394384291,1763515832567,-150.0,0.00038524,2]
[394384292,1763515832576,-500.0,0.00038539,30]
[394384293,1763515832585,-500.0,0.000386,30]
[394384294,1763515832593,-300.0,0.00038668,2]
[394384295,1763515832602,-500.0,0.00038775,30]
[394384296,1763515832611,-300.0,0.00038792,2]
[394384297,1763515832621,-164.95,0.00038824,2]
[394384298,1763515832630,-300.0,0.00038836,2]
[394384299,1763515832639,-300.0,0.00038864,2]
[394384300,1763515832647,-500.0,0.00038948,30]
[394384301,1763515832656,-500.0,0.00039058,30]
[394384302,1763515832665,-1000.0,0.00039082,7]
[394384303,1763515832674,-1000.0,0.00039116,7]
[394384304,1763515832683,-1000.0,0.00039175,7]
[394384305,1763515832692,-500.0,0.00039191,30]
[394384306,1763515832701,-300.0,0.00039224,2]
[394384307,1763515832710,-300.0,0.00039261,2]
[394384308,1763515832719,-564.7907418,0.00039325,5]
[394384310,1763515832728,-947.43,0.00039325,30]
[394384311,1763515832738,-220.015048,0.00039326,2]
[394384312,1763515832750,-4717.9672,0.00039351,2]
[394384313,1763515832759,-10852.43619277,0.00039351,2]
[394384314,1763515832768,-1500.0,0.0003936,120]
[394384316,1763515832777,-2564.0,0.00039403,7]
[394384317,1763515832787,-1000.0,0.00039423,7]
[394384318,1763515832796,-8527.68238245,0.00039451,2]
[394384319,1763515832805,-417.74241844,0.00039451,2]
[394384320,1763515832815,-1000.0,0.00039457,7]
[394384321,1763515832824,-200.0,0.00039486,2]
[394384322,1763515832833,-302.58342573,0.00039486,33]
[394384323,1763515832842,-1000.0,0.00039487,7]
[394384324,1763515832851,-802.3781414,0.00039491,30]
[394384325,1763515832859,-1093.03,0.00039536,120]
[394384326,1763515832868,-151.0,0.00039538,14]
[394384327,1763515832877,-107907.82977812,0.00039541,4]
[394384328,1763515832895,-2411.90587241,0.00039541,4]
[394384336,1763515833849,181.90466585,0.00041812,120]
[394384363,1763515837560,-1412.48722368,0.00039541,4]
[394384364,1763515837574,-1866.52498241,0.00039541,4]
[394384365,1763515837613,-696.05560694,0.00039541,4]
[394384367,1763515837625,-574.0,0.00039541,4]
[394384368,1763515837639,-1319.6449995,0.00039541,4]
[394384369,1763515837656,-281.55,0.00039541,4]
[394384370,1763515837668,-1665.8,0.00039541,4]
[394384371,1763515837682,-2307.80385771,0.00039541,4]
[394384372,1763515837695,-999.99999998,0.00039541,4]
[394384373,1763515837797,-2875.5170958,0.00039541,4]
[394384374,1763515837812,-122612.34095145,0.00039541,4]
[394384375,1763515837822,-200729.141623,0.00039541,4]
[394384376,1763515837833,-150.56,0.00039541,2]
[394384377,1763515837842,-401.91612497,0.00039541,2]
[394384378,1763515837852,-377.52,0.00039541,3]
[394384379,1763515837862,-224.4838957,0.00039549,15]
[394384380,1763515837873,-204.34681054,0.00039549,15]
[394384382,1763515837885,-500.0,0.00039549,15]
[394384383,1763515837899,-526.7448619,0.00039549,15]
[394384384,1763515837909,-500.0,0.0003955,2]
[394384385,1763515837921,-494.14,0.0003955,2]
[394384386,1763515837933,-500.0,0.0003955,2]
[394384387,1763515837945,-208.7574201,0.0003955,120]
[394384388,1763515837956,-130096.0110621,0.00039551,2]
[394384389,1763515837966,-15412.8609886,0.00039551,2]
[394384390,1763515837977,-3162.476205,0.00039551,2]
[394384391,1763515837992,-56474.4888858,0.00039551,2]
[394384392,1763515838003,-477625.5562923,0.00039551,2]
[394384393,1763515838015,-1402.2496381,0.00039551,2]
[394384394,1763515838025,-11164.1163346,0.00039551,2]
[394384395,1763515838038,-1390.9316695,0.00039551,2]
[394384396,1763515838048,-500.0,0.00039573,5]
[394384397,1763515838059,-413.34878165,0.00039573,5]
[394384398,1763515838070,-500.0,0.00039573,5]
[394384399,1763515838081,-511.40593209,0.00039573,5]
[394384400,1763515838093,-500.0,0.00039573,5]
[394384401,1763515838104,-500.0,0.00039573,5]
[394384402,1763515838115,-500.0,0.00039573,5]
[394384403,1763515838126,-500.0,0.00039573,5]
[394384404,1763515838137,-500.0,0.00039573,5]
[394384405,1763515838149,-500.0,0.00039573,5]
[394384406,1763515838160,-500.0,0.00039573,5]
[394384407,1763515838170,-500.0,0.00039573,5]
[394384408,1763515838181,-530.90204986,0.00039573,5]
[394384409,1763515838191,-500.0,0.00039573,5]
[394384411,1763515838201,-500.0,0.00039573,5]
[394384412,1763515838212,-500.85479235,0.00039573,5]
[394384415,1763515838223,-220.015048,0.00039575,2]
[394384416,1763515838234,-300.0,0.0003959,2]
[394384417,1763515838244,-947.43,0.00039599,30]
[394384418,1763515838255,-300.0,0.00039608,2]
[394384419,1763515838268,-10852.43619268,0.00039613,2]
[394384420,1763515838279,-5888.0,0.00039633,2]
[394384421,1763515838289,-500.0,0.00039646,30]
[394384422,1763515838299,-1584.4673298,0.00039686,2]
[394384423,1763515838310,-9558.5305535,0.00039692,4]
[394384424,1763515838320,-160.16086726,0.00039699,30]
[394384425,1763515838330,-160.16086726,0.00039699,30]
[394384426,1763515838341,-200.0,0.000397,14]
[394384427,1763515838351,-8527.68238239,0.00039702,2]
[394384428,1763515838362,-1610.02567,0.000398,2]
[394384429,1763515838372,-500.0,0.000398,14]
[394384430,1763515838381,-500.0,0.00039802,30]
[394384431,1763515838391,-417.74241838,0.00039828,2]
[394384432,1763515838401,-500.0,0.00039837,30]
[394384433,1763515838413,-9558.5305535,0.0003984,4]
[394384434,1763515838423,-500.0,0.00039858,30]
[394384435,1763515838435,-947.43,0.00039873,30]
[394384436,1763515838447,-10852.43619268,0.00039876,15]
[394384437,1763515838459,-700.6,0.0003989,2]
[394384438,1763515838471,-478.46,0.0003989,2]
[394384439,1763515838480,-700.6,0.0003989,2]
[394384440,1763515838490,-478.46,0.0003989,2]
[394384441,1763515838501,-700.6,0.0003989,2]
[394384442,1763515838511,-478.46,0.0003989,2]
[394384443,1763515838522,-478.46,0.0003989,2]
[394384444,1763515838531,-700.6,0.0003989,2]
[394384445,1763515838541,-700.6,0.0003989,2]
[394384446,1763515838558,-478.46,0.0003989,2]
[394384447,1763515838568,-700.6,0.0003989,2]
[394384448,1763515838579,-478.46,0.0003989,2]
[394384449,1763515838590,-700.6,0.0003989,2]
[394384450,1763515838601,-700.6,0.0003989,2]
[394384451,1763515838611,-700.0,0.000399,14]
[394384452,1763515838622,-9558.5305535,0.00039943,4]
[394384453,1763515838631,-8527.68238239,0.00039953,15]
[394384454,1763515838641,-1584.4673298,0.00039957,2]
[394384455,1763515838651,-500.0,0.00039959,30]
[394384456,1763515838661,-220.0150481,0.0003996,2]
[394384457,1763515838671,-150.56,0.0003996,2]
[394384458,1763515838681,-38234.122214,0.0003997,4]
[394384459,1763515838692,-79910.78756501,0.0003998,2]
[394384460,1763515838702,-300.0,0.00039994,2]
[394384461,1763515838718,-8004.41174825,0.00039999,2]
[394384462,1763515838728,-190.43236097,0.0004,5]
[394384463,1763515838738,-2299.99999801,0.0004,2]
[394384464,1763515838754,-1004.26378447,0.0004,120]
[394384465,1763515838764,-270.4,0.0004,120]
[394384466,1763515838774,-192.07,0.0004,120]
[394384467,1763515838787,-219.87,0.0004,120]
[394384468,1763515838797,-156.6,0.0004,120]
[394384469,1763515838807,-635.97,0.0004,120]
[394384470,1763515838818,-300.0,0.00040008,2]
[394384471,1763515838827,-195.11,0.00040044,14]
[394384472,1763515838838,-9558.5305535,0.00040111,4]
[394384473,1763515838849,-1000.0,0.00040121,5]
[394384474,1763515838859,-1000.0,0.00040121,5]
[394384475,1763515838870,-551.45375901,0.00040121,5]
[394384476,1763515838881,-160.16086726,0.00040137,30]
[394384477,1763515838892,-160.16086726,0.00040137,30]
[394384478,1763515838903,-10852.43619268,0.00040138,15]
[394384479,1763515838914,-947.43,0.00040147,30]
[394384480,1763515838923,-300.0,0.00040152,2]
[394384481,1763515838934,-500.0,0.00040162,2]
[394384482,1763515838945,-416.87,0.00040164,2]
[394384483,1763515838955,-300.0,0.00040164,2]
[394384484,1763515838965,-1209.53,0.00040164,2]
[394384485,1763515838975,-150.0,0.00040164,2]
[394384486,1763515838986,-550.38,0.00040164,2]
[394384487,1763515838998,-150.0,0.00040164,2]
[394384488,1763515839008,-150.0,0.00040164,2]
[394384489,1763515839019,-169.49,0.00040164,2]
[394384490,1763515839030,-177.39,0.00040164,2]
[394384491,1763515839041,-177.39,0.00040164,2]
[394384492,1763515839052,-550.38,0.00040164,2]
[394384493,1763515839064,-1209.53,0.00040164,2]
[394384494,1763515839074,-150.0,0.00040164,2]
[394384495,1763515839085,-169.49,0.00040164,2]
[394384496,1763515839095,-416.87,0.00040164,2]
[394384497,1763515839106,-150.0,0.00040164,2]
[394384498,1763515839116,-169.49,0.00040164,2]
[394384499,1763515839128,-550.38,0.00040164,2]
[394384500,1763515839139,-177.39,0.00040164,2]
[394384501,1763515839149,-416.87,0.00040164,2]
[394384502,1763515839160,-1209.53,0.00040164,2]
[394384503,1763515839171,-150.0,0.00040164,2]
[394384504,1763515839182,-177.39,0.00040164,2]
[394384505,1763515839193,-1209.53,0.00040164,2]
[394384506,1763515839204,-169.49,0.00040164,2]
[394384507,1763515839214,-150.0,0.00040164,2]
[394384508,1763515839224,-150.0,0.00040164,2]
[394384509,1763515839235,-339.11,0.00040164,2]
[394384510,1763515839246,-1209.53,0.00040164,2]
[394384511,1763515839256,-169.49,0.00040164,2]
[394384512,1763515839267,-150.0,0.00040164,2]
[394384513,1763515839277,-177.39,0.00040164,2]
[394384514,1763515839287,-340.37,0.00040164,2]
[394384515,1763515839298,-300.0,0.00040164,2]
[394384516,1763515839309,-354.78,0.00040164,2]
[394384517,1763515839319,-300.0,0.0004017,2]
[394384518,1763515839329,-9558.5305535,0.00040195,4]
[394384519,1763515839340,-8527.68238239,0.00040205,15]
[394384520,1763515839350,-417.74241838,0.00040205,2]
[394384521,1763515839360,-206.64164394,0.00040225,7]
[394384522,1763515839371,-192.47,0.00040225,14]
[394384524,1763515839547,-261.99,0.0004031,14]
[394384525,1763515839563,-500.0,0.00040337,15]
[394384526,1763515839572,-9558.5305535,0.00040339,4]
[394384527,1763515839581,-907.0,0.0004035,2]
[394384528,1763515839591,-1191.0,0.0004035,2]
[394384529,1763515839600,-1325.857,0.0004035,2]
[394384530,1763515839610,-708.975,0.0004035,2]
[394384531,1763515839619,-578.536,0.0004035,2]
[394384532,1763515839628,-1605.0,0.0004035,2]
[394384533,1763515839639,-3433.0,0.0004035,2]
[394384534,1763515839660,-826.0,0.0004035,2]
[394384535,1763515839669,-300.0,0.00040357,2]
[394384537,1763515839679,-395.0,0.00040357,2]
[394384538,1763515839688,-1000.0,0.00040367,7]
[394384539,1763515839697,-1000.0,0.00040375,7]
[394384540,1763515839705,-1000.0,0.00040379,7]
[394384541,1763515839714,-1000.0,0.00040396,7]
[394384542,1763515839725,-10852.43619268,0.000404,15]
[394384543,1763515839734,-300.0,0.00040419,2]
[394384544,1763515839743,-947.43,0.00040421,30]
[394384545,1763515839752,-200.0,0.00040441,2]
[394384546,1763515839763,-9558.5305535,0.00040446,4]
[394384547,1763515839772,-8527.68238239,0.00040456,15]
[394384548,1763515839784,-9558.5305535,0.00040463,4]
[394384549,1763515839793,-565.25246598,0.00040473,5]
[394384550,1763515839803,-500.0,0.00040473,5]
[394384552,1763515839813,-1000.0,0.00040498,7]
[394384553,1763515839822,-1999.99,0.000405,2]
[394384554,1763515839831,-2000.0,0.000405,2]
[394384555,1763515839841,-2000.0,0.000405,2]
[394384556,1763515839850,-2000.0,0.000405,2]
[394384557,1763515839860,-2022.53,0.000405,2]
[394384558,1763515839870,-2000.0,0.000405,2]
[394384559,1763515839880,-500.0,0.00040513,2]
[394384560,1763515839889,-500.0,0.00040523,2]
[394384561,1763515839899,-150.56,0.00040524,2]
[394384562,1763515839908,-150.56,0.00040524,2]
[394384563,1763515839917,-152.0,0.00040526,3]
[394384564,1763515839926,-500.0,0.00040533,2]
[394384565,1763515839935,-551.61144685,0.00040533,2]
[394384566,1763515839944,-373281.61020626,0.00040534,2]
[394384567,1763515840040,-5970.36829035,0.00040534,2]
[394384569,1763515840053,-638.55537377,0.00040534,2]
[394384570,1763515840064,-2090.0,0.00040534,2]
[394384571,1763515840075,-400.0,0.00040534,2]
[394384573,1763515840131,262.883585,0.00041812,120]
[394384577,1763515840196,170.80349886,0.00041812,120]
[394384578,1763515840219,-150.0,0.00038818,2]
[394384579,1763515840228,-150.0,0.00038818,120]
[394384580,1763515840237,-2487.8266984,0.00040534,2]
[394384581,1763515840248,-375131.63943122,0.00040534,2]
[394384582,1763515840258,-2392.8760008,0.00040545,2]
[394384583,1763515840268,-1000.0,0.00040553,7]
[394384584,1763515840277,-500.0,0.00040573,5]
[394384586,1763515840287,-398.51453937,0.00040573,5]
[394384587,1763515840297,-500.0,0.00040573,5]
[394384588,1763515840306,-150.0,0.00040573,5]
[394384589,1763515840315,-159.27600058,0.00040575,30]
[394384590,1763515840324,-160.38208393,0.00040575,30]
[394384591,1763515840334,-160.38208393,0.00040575,30]
[394384592,1763515840343,-160.16086726,0.00040575,30]
[394384593,1763515840352,-160.16086726,0.00040575,30]
[394384594,1763515840362,-417.74241838,0.00040582,2]
[394384595,1763515840372,-500.0,0.00040589,30]
[394384596,1763515840381,-17733.44,0.00040634,2]
[394384597,1763515840389,-195.11,0.00040638,14]
[394384598,1763515840399,-1000.0,0.00040646,7]
[394384599,1763515840408,-1500.0,0.00040668,5]
[394384600,1763515840417,-1335.09506367,0.00040668,5]
[394384601,1763515840426,-500.0,0.00040682,30]
[394384602,1763515840436,-947.43,0.00040695,30]
[394384603,1763515840445,-8527.68238239,0.00040707,15]
[394384604,1763515840454,-973.0,0.00040725,2]
[394384605,1763515840463,-300.0,0.00040746,2]
[394384606,1763515840473,-300.0,0.00040785,2]
[394384607,1763515840486,-300.0,0.00040791,2]
[394384608,1763515840496,-1000.0,0.00040795,7]
[394384609,1763515840505,-217.19,0.00040795,2]
[394384610,1763515840514,-1610.02567,0.000408,6]
[394384611,1763515840523,-1000.0,0.00040803,7]
[394384612,1763515840533,-2455.52342635,0.00040812,13]
[394384614,1763515840541,-2455.5234263,0.00040812,13]
[394384615,1763515840550,-2455.5234263,0.00040812,13]
[394384616,1763515840570,-2455.5234263,0.00040812,13]
[394384617,1763515840580,-2455.5234263,0.00040812,13]
[394384618,1763515840589,-2455.5234263,0.00040812,13]
[394384619,1763515840598,-2455.5234263,0.00040812,13]
[394384620,1763515840607,-2455.5234263,0.00040812,13]
[394384621,1763515840616,-2455.5234263,0.00040812,13]
[394384622,1763515840626,-500.0,0.00040815,30]
[394384623,1763515840636,-1000.0,0.0004082,7]
[394384624,1763515840647,-300.0,0.00040823,2]
[394384625,1763515840656,-164.95,0.00040848,2]
[394384626,1763515840666,-478.46,0.00040849,2]
[394384627,1763515840675,-700.6,0.00040849,2]
[394384628,1763515840685,-700.6,0.00040849,2]
[394384629,1763515840694,-700.6,0.00040849,2]
[394384630,1763515840703,-700.6,0.00040849,2]
[394384631,1763515840713,-700.6,0.00040849,2]
[394384632,1763515840722,-698.17,0.00040849,2]
[394384633,1763515840732,-1401.2,0.00040849,2]
[394384634,1763515840743,-1107.3,0.00040849,2]
[394384635,1763515840761,-300.0,0.00040859,2]
[394384636,1763515840775,-300.0,0.00040868,2]
[394384637,1763515840786,-1000.0,0.0004089,7]
[394384638,1763515840798,-1000.0,0.000409,14]
[394384640,1763515840807,-300.0,0.00040904,2]
[394384641,1763515840816,-2455.5234263,0.00040905,13]
[394384642,1763515840826,-295.88,0.00040908,30]
[394384643,1763515840836,-395.0,0.0004091,2]
[394384644,1763515840845,-300.0,0.00040911,2]
[394384645,1763515840855,-300.0,0.00040941,2]
[394384646,1763515840864,-8527.68238239,0.00040958,15]
[394384647,1763515840874,-417.74241838,0.00040958,2]
[394384648,1763515840883,-947.43,0.00040969,30]
[394384649,1763515840893,-300.0,0.00040975,2]
[394384650,1763515840904,-300.0,0.00040983,2]
[394384651,1763515840914,-1209.53,0.00040986,2]
[394384652,1763515840924,-177.39,0.00040986,2]
[394384653,1763515840933,-169.49,0.00040986,2]
[394384654,1763515840943,-300.0,0.00040986,2]
[394384655,1763515840952,-150.0,0.00040986,2]
[394384656,1763515840962,-150.0,0.00040986,2]
[394384657,1763515840971,-416.87,0.00040986,2]
[394384658,1763515840981,-1209.53,0.00040986,2]
[394384659,1763515840990,-150.0,0.00040986,2]
[394384660,1763515841000,-169.49,0.00040986,2]
[394384661,1763515841010,-177.39,0.00040986,2]
[394384662,1763515841020,-416.87,0.00040986,2]
[394384663,1763515841030,-177.39,0.00040986,2]
[394384665,1763515841039,-1209.53,0.00040986,2]
[394384666,1763515841048,-150.0,0.00040986,2]
[394384667,1763515841057,-150.0,0.00040986,2]
[394384668,1763515841067,-150.0,0.00040986,2]
[394384669,1763515841076,-169.49,0.00040986,2]
[394384670,1763515841085,-833.58,0.00040986,2]
[394384671,1763515841094,-1192.06,0.00040986,2]
[394384672,1763515841104,-177.39,0.00040986,2]
[394384673,1763515841113,-169.49,0.00040986,2]
[394384674,1763515841123,-150.0,0.00040986,2]
[394384675,1763515841132,-177.39,0.00040986,2]
[394384676,1763515841141,-1209.53,0.00040986,2]
[394384677,1763515841151,-150.0,0.00040986,2]
[394384678,1763515841159,-169.49,0.00040986,2]
[394384679,1763515841169,-150.0,0.00040986,2]
[394384680,1763515841178,-338.98,0.00040986,2]
[394384681,1763515841187,-300.0,0.00040986,2]
[394384682,1763515841197,-177.39,0.00040986,2]
[394384683,1763515841206,-150.0,0.00040986,2]
[394384684,1763515841215,-169.49,0.00040986,2]
[394384685,1763515841225,-177.39,0.00040986,2]
[394384686,1763515841234,-177.39,0.00040986,2]
[394384687,1763515841243,-150.0,0.00040986,2]
[394384688,1763515841252,-177.39,0.00040986,2]
[394384689,1763515841262,-177.39,0.00040986,2]
[394384690,1763515841271,-150.0,0.00040986,2]
[394384691,1763515841280,-177.39,0.00040986,2]
[394384692,1763515841291,-177.39,0.00040986,2]
[394384694,1763515841300,-150.0,0.00040986,2]
[394384695,1763515841309,-177.39,0.00040986,2]
[394384696,1763515841319,-177.39,0.00040986,2]
[394384697,1763515841328,-150.0,0.00040986,2]
[394384698,1763515841337,-177.39,0.00040986,2]
[394384699,1763515841346,-182.52,0.00040986,2]
[394384700,1763515841356,-152.22,0.00040986,2]
[394384701,1763515841365,-300.0,0.00040994,2]
[394384702,1763515841374,-171.0,0.00041,30]
[394384703,1763515841383,-4635.01645803,0.00041,7]
[394384704,1763515841393,-12699.58262693,0.00041,7]
[394384705,1763515841403,-160.38208393,0.00041014,30]
[394384706,1763515841411,-160.16086726,0.00041014,30]
[394384707,1763515841420,-160.16086726,0.00041014,30]
[394384708,1763515841430,-300.0,0.00041015,2]
[394384709,1763515841439,-300.0,0.00041015,2]
[394384710,1763515841448,-300.0,0.00041036,2]
[394384711,1763515841457,-300.0,0.00041036,2]
[394384712,1763515841467,-300.0,0.00041038,2]
[394384713,1763515841476,-300.0,0.00041053,2]
[394384714,1763515841486,-500.0,0.00041056,30]
[394384715,1763515841495,-200.0,0.0004106,2]
[394384716,1763515841505,-200.0,0.0004106,2]
[394384717,1763515841514,-200.0,0.0004106,2]
[394384718,1763515841524,-200.0,0.0004106,2]
[394384719,1763515841533,-200.0,0.0004106,2]
[394384720,1763515841543,-200.0,0.0004106,2]
[394384721,1763515841552,-200.0,0.0004106,2]
[394384722,1763515841563,-200.0,0.0004106,2]
[394384723,1763515841572,-200.0,0.0004106,2]
[394384724,1763515841582,-200.0,0.0004106,2]
[394384725,1763515841591,-200.0,0.0004106,2]
[394384726,1763515841600,-200.0,0.0004106,2]
[394384727,1763515841610,-200.0,0.0004106,2]
[394384728,1763515841620,-200.0,0.0004106,2]
[394384729,1763515841629,-200.0,0.0004106,2]
[394384730,1763515841639,-200.0,0.0004106,2]
[394384731,1763515841650,-200.0,0.0004106,2]
[394384732,1763515841659,-200.0,0.0004106,2]
[394384733,1763515841670,-200.0,0.0004106,2]
[394384735,1763515841679,-200.0,0.0004106,2]